bitfinex-derivatives/quotes_SOLF0:USTF0_20250328
["timestamp","ask_amount","ask_price","bid_price","bid_amount"]
[1743180804474,7.7324,129.4,129.39,0.05820942]
[1743180805369,7.7324,129.4,129.39,153.20409125]
[1743180805576,36.9924,129.4,129.39,153.20409125]
[1743180806078,36.9924,129.4,129.39,140.88669125]
[1743180806278,7.733,129.39,129.38,214.7600233]
[1743180807080,7.7337,129.38,129.36,85.9874014]
[1743180807280,7.7337,129.38,129.37,0.0525589]
[1743180807480,7.78680513,129.38,129.37,0.0525589]
[1743180810579,7.7366,129.33,129.32,2.0322]
[1743180813079,7.7372,129.32,129.31,0.05065765]
[1743180813581,7.7367,129.33,129.31,0.05065765]
[1743180815080,7.7372,129.32,129.31,0.05065765]
[1743180817477,7.7368,129.33,129.31,0.05065765]
[1743180817982,29.17132088,129.34,129.31,0.05065765]
[1743180818181,7.7366,129.33,129.31,0.05065765]
[1743180819277,36.90752088,129.34,129.31,0.05065765]
[1743180819470,29.17132088,129.34,129.31,0.05065765]
[1743180819880,36.90732088,129.34,129.31,0.05065765]
[1743180820278,29.17132088,129.34,129.31,0.05065765]
[1743180820581,7.7369,129.33,129.31,0.05065765]
[1743180820982,7.7372,129.32,129.31,0.05065765]
[1743180821283,29.17132088,129.34,129.31,0.05065765]
[1743180821582,41.57679869,129.34,129.31,0.05065765]
[1743180822481,7.7366,129.33,129.31,0.05065765]
[1743180822686,41.57679869,129.34,129.31,0.05065765]
[1743180823178,7.7366,129.33,129.31,0.05065765]
[1743180823379,29.17132088,129.34,129.31,12.45613546]
[1743180823777,36.90762088,129.34,129.31,20.19363546]
[1743180824076,36.90762088,129.34,129.31,12.45613546]
[1743180824285,36.90762088,129.34,129.31,20.19363546]
[1743180824984,29.17132088,129.34,129.32,20.14257781]
[1743180825479,7.78732088,129.34,129.32,20.14257781]
[1743180825679,7.78732088,129.34,129.32,12.40547781]
[1743180826478,0.05132088,129.34,129.32,20.14257781]
[1743180827175,379.4609,129.44,129.33,12.40547781]
[1743180827381,29.0,129.39,129.35,12.40547781]
[1743180827582,12.40547781,129.38,129.33,12.40547781]
[1743180827778,12.40547781,129.37,129.33,12.40547781]
[1743180827981,12.40547781,129.38,129.33,12.40547781]
[1743180828187,7.7345,129.37,129.34,12.40547781]
[1743180828388,7.78551664,129.37,129.34,12.46429732]
[1743180829389,7.78551664,129.37,129.34,20.19979732]
[1743180829886,7.7348,129.36,129.34,20.19979732]
[1743180830783,7.78551664,129.37,129.34,20.19979732]
[1743180831288,7.78551664,129.37,129.35,7.7354]
[1743180831490,7.78551664,129.37,129.34,12.46429732]
[1743180831684,0.05101664,129.37,129.35,20.14057781]
[1743180831885,0.05101664,129.37,129.36,12.40547781]
[1743180832584,0.05101664,129.37,129.36,20.14027781]
[1743180832982,7.78521664,129.37,129.36,12.40547781]
[1743180833182,7.78521664,129.37,129.35,12.40547781]
[1743180833583,7.78521664,129.37,129.35,20.14057781]
[1743180834794,0.05101664,129.37,129.36,20.14027781]
[1743180836389,7.7333,129.39,129.36,20.14027781]
[1743180836588,12.40547781,129.44,129.38,12.40547781]
[1743180836791,41.36547781,129.45,129.4,12.40547781]
[1743180836998,7.7317,129.42,129.4,12.40547781]
[1743180837591,7.78045901,129.42,129.4,12.45505875]
[1743180837992,0.04875901,129.42,129.4,20.18745875]
[1743180838593,0.04875901,129.42,129.41,12.40547781]
[1743180839191,7.77995901,129.42,129.41,12.40547781]
[1743180840088,0.04875901,129.42,129.41,12.40547781]
[1743180840291,0.04875901,129.42,129.4,0.04958094]
[1743180840499,0.04875901,129.42,129.4,12.45505875]
[1743180840798,0.04875901,129.42,129.4,20.18715875]
[1743180842104,12.40547781,129.48,129.41,12.40547781]
[1743180842306,41.32547781,129.48,129.43,12.40547781]
[1743180842504,12.40547781,129.47,129.42,12.40547781]
[1743180842705,7.73,129.45,129.42,20.13637781]
[1743180843205,7.78437272,129.45,129.42,20.19202877]
[1743180843805,7.78437272,129.45,129.43,7.7306]
[1743180844007,7.78437272,129.45,129.43,20.13607781]
[1743180844707,7.78437272,129.45,129.43,12.40547781]
[1743180845313,7.73,129.44,129.43,12.40547781]
[1743180845511,0.05437272,129.45,129.43,12.40547781]
[1743180845712,14.47727781,129.5,129.44,12.40547781]
[1743180846012,7.7279,129.48,129.45,12.40547781]
[1743180846208,43.35727781,129.5,129.45,20.13467781]
[1743180846412,7.7285,129.47,129.45,20.13467781]
[1743180846917,7.78478916,129.47,129.45,12.46424872]
[1743180847112,0.05598916,129.47,129.45,12.46424872]
[1743180847312,0.05598916,129.47,129.45,20.19364872]
[1743180847809,0.05598916,129.47,129.46,12.40547781]
[1743180848011,0.05598916,129.47,129.46,20.13427781]
[1743180848214,7.7267,129.5,129.46,12.40547781]
[1743180848416,7.7267,129.5,129.47,12.40547781]
[1743180848809,15.4454,129.57,129.49,12.40547781]
[1743180849113,12.40547781,129.54,129.49,12.40547781]
[1743180849315,7.7254,129.52,129.49,20.13217781]
[1743180849517,12.40547781,129.53,129.5,0.05459719]
[1743180849905,7.7252,129.52,129.5,0.05459719]
[1743180850105,20.13067781,129.52,129.5,0.05459719]
[1743180850307,20.13127781,129.51,129.5,0.05459719]
[1743180850711,7.7258,129.51,129.5,0.05459719]
[1743180851614,20.13127781,129.51,129.5,0.05459719]
[1743180851821,7.7285,129.47,129.44,43.18407781]
[1743180852207,7.7285,129.47,129.44,22.11357781]
[1743180852609,7.7285,129.47,129.44,22.11377781]
[1743180853009,7.78418048,129.47,129.44,14.44154176]
[1743180853310,7.78418048,129.47,129.45,7.7294]
[1743180853820,7.78418048,129.47,129.44,22.17104176]
[1743180854023,7.78418048,129.47,129.44,14.44154176]
[1743180854419,0.05568048,129.47,129.45,20.13457781]
[1743180854615,0.05568048,129.47,129.45,12.40547781]
[1743180854923,7.78398048,129.47,129.45,20.13457781]
[1743180855321,0.05568048,129.47,129.44,14.44154176]
[1743180855530,7.7291,129.46,129.44,20.19264176]
[1743180855823,0.05568048,129.47,129.44,12.46294176]
[1743180856120,28.8,129.51,129.46,12.40547781]
[1743180856322,28.8,129.51,129.47,12.40547781]
[1743180856521,41.20547781,129.51,129.46,12.40547781]
[1743180857023,7.7274,129.49,129.46,20.13387781]
[1743180857219,7.7274,129.49,129.46,12.40547781]
[1743180857419,7.77916983,129.49,129.46,12.45625949]
[1743180858218,7.77916983,129.49,129.47,7.7282]
[1743180859118,7.77916983,129.49,129.46,20.18475949]
[1743180859324,7.728,129.48,129.46,20.18475949]
[1743180860119,7.77916983,129.49,129.47,7.7282]
[1743180860524,0.05176983,129.49,129.46,12.45625949]
[1743180860723,0.05176983,129.49,129.48,20.13307781]
[1743180860927,41.10547781,129.54,129.48,12.40547781]
[1743180861114,41.10547781,129.54,129.49,12.40547781]
[1743180861622,12.40547781,129.55,129.5,12.40547781]
[1743180861822,12.40547781,129.54,129.49,20.13217781]
[1743180862026,12.40547781,129.53,129.51,0.05663128]
[1743180863125,7.7252,129.52,129.51,0.05663128]
[1743180865223,0.0205999,129.54,129.51,0.05663128]
[1743180865418,0.0205999,129.54,129.51,12.46210909]
[1743180865916,7.7248,129.53,129.51,0.05663128]
[1743180867024,7.7252,129.52,129.51,0.05663128]
[1743180873735,7.725,129.53,129.51,7.78223128]
[1743180873935,0.0205999,129.54,129.51,12.46210909]
[1743180874837,7.725,129.53,129.51,20.18760909]
[1743180875536,7.725,129.53,129.51,0.05663128]
[1743180875932,12.42607771,129.54,129.51,0.05663128]
[1743180876434,7.7251,129.53,129.51,0.05663128]
[1743180876630,12.40547781,129.53,129.51,0.05663128]
[1743180876837,7.7252,129.52,129.51,0.05663128]
[1743180877436,7.725,129.53,129.51,0.05663128]
[1743180878137,7.7449999,129.54,129.51,7.78223128]
[1743180878337,0.0205999,129.54,129.51,7.78223128]
[1743180878637,7.7247,129.53,129.51,7.78223128]
[1743180879031,7.7448999,129.54,129.52,7.7251]
[1743180879430,7.7448999,129.54,129.51,0.05663128]
[1743180879626,7.7448999,129.54,129.51,7.78203128]
[1743180880137,0.0205999,129.54,129.52,7.7252]
[1743180880333,27.19669333,129.63,129.53,12.40547781]
[1743180880528,12.40547781,129.61,129.56,12.40547781]
[1743180880734,7.7208,129.6,129.57,20.12737781]
[1743180880937,43.26287781,129.62,129.57,20.12737781]
[1743180881133,43.26287781,129.62,129.58,7.7213]
[1743180881635,12.40547781,129.61,129.59,0.05806509]
[1743180881941,12.40547781,129.6,129.54,12.40547781]
[1743180882233,12.40547781,129.59,129.54,12.40547781]
[1743180882538,12.40547781,129.59,129.56,0.05351292]
[1743180883336,12.40547781,129.59,129.56,7.77621292]
[1743180884239,20.12667781,129.59,129.56,7.77621292]
[1743180884833,20.12667781,129.59,129.56,0.05351292]
[1743180885038,28.88,129.59,129.56,0.05351292]
[1743180885239,31.0374,129.62,129.57,12.40547781]
[1743180885441,43.44287781,129.62,129.59,7.7208]
[1743180885636,12.40547781,129.61,129.59,7.7208]
[1743180885837,12.40547781,129.61,129.59,0.05335827]
[1743180886242,51.16257781,129.62,129.59,0.05335827]
[1743180886441,43.44287781,129.62,129.6,7.7202]
[1743180886636,43.44287781,129.62,129.59,0.05335827]
[1743180887038,12.40547781,129.61,129.59,0.05335827]
[1743180887640,7.7205,129.6,129.59,0.05335827]
[1743180888443,20.12567781,129.61,129.59,0.05335827]
[1743180888643,7.7202,129.61,129.59,0.05335827]
[1743180888944,20.12507781,129.62,129.59,7.77435827]
[1743180889539,7.72,129.61,129.59,0.05335827]
[1743180889948,20.12507781,129.62,129.59,7.77415827]
[1743180890140,12.40547781,129.62,129.59,7.77415827]
[1743180891146,20.12497781,129.62,129.59,7.77415827]
[1743180891347,12.40547781,129.62,129.59,7.77415827]
[1743180891847,20.12497781,129.62,129.59,7.77415827]
[1743180892542,29.06,129.63,129.59,0.05335827]
[1743180892543,20.12587781,129.61,129.59,0.05335827]
[1743180892753,12.40547781,129.61,129.59,0.05335827]
[1743180893750,7.7205,129.6,129.59,0.05335827]
[1743180894442,20.12567781,129.61,129.59,0.05335827]
[1743180894644,7.7202,129.61,129.59,0.05335827]
[1743180897146,7.7205,129.6,129.59,0.05335827]
[1743180897648,36.7805,129.6,129.59,0.05335827]
[1743180898752,29.06,129.6,129.59,0.05335827]
[1743180899252,7.7202,129.61,129.59,7.77445827]
[1743180899648,7.7202,129.61,129.59,0.05335827]
[1743180900860,7.7202,129.61,129.59,7.77435827]
[1743180901355,36.7396,129.62,129.6,7.7204]
[1743180901657,7.7196,129.62,129.6,7.7204]
[1743180901862,7.7196,129.62,129.59,20.17953608]
[1743180902058,28.98,129.63,129.59,12.45883608]
[1743180902059,7.719,129.63,129.59,12.45883608]
[1743180902761,12.40547781,129.63,129.59,0.05335827]
[1743180903160,7.7194,129.62,129.59,7.77435827]
[1743180903556,7.7203,129.61,129.59,0.05335827]
[1743180904261,7.7196,129.62,129.59,7.77415827]
[1743180904454,7.7196,129.62,129.59,20.17963608]
[1743180904956,12.40547781,129.63,129.59,12.45883608]
[1743180905257,12.40547781,129.62,129.59,0.05335827]
[1743180905461,7.7202,129.61,129.59,7.77435827]
[1743180905957,22.27887781,129.65,129.6,12.40547781]
[1743180906256,7.7177,129.65,129.61,12.40547781]
[1743180906457,41.42547781,129.66,129.61,12.40547781]
[1743180906662,12.40547781,129.65,129.62,0.05204048]
[1743180907068,41.42547781,129.65,129.62,0.05204048]
[1743180907567,41.40547781,129.65,129.62,0.05204048]
[1743180907763,7.7186,129.64,129.62,0.05204048]
[1743180908272,7.7182,129.64,129.62,0.05204048]
[1743180908970,7.7187,129.63,129.62,0.05204048]
[1743180909172,20.12417781,129.63,129.62,0.05204048]
[1743180909369,11.75819333,129.74,129.62,499.17751829]
[1743180909671,85.25893239,129.78,129.73,12.40547781]
[1743180909880,85.25893239,129.78,129.76,12.40547781]
[1743180910062,85.25893239,129.78,129.74,12.45621498]
[1743180910377,85.25893239,129.78,129.77,12.40547781]
[1743180910671,13.82918151,129.79,129.77,12.40547781]
[1743180910975,13.82918151,129.79,129.78,26.9434237]
[1743180911670,13.82918151,129.79,129.77,7.76301115]
[1743180911973,13.82918151,129.79,129.77,0.05291115]
[1743180913077,32.9972,129.82,129.77,0.05291115]
[1743180913570,19.2336237,129.81,129.77,0.05291115]
[1743180913873,32.9972,129.82,129.77,0.05291115]
[1743180914470,40.7048,129.82,129.77,0.05291115]
[1743180915372,32.9972,129.82,129.77,0.05291115]
[1743180916371,19.2336237,129.81,129.77,0.05291115]
[1743180916573,7.7087,129.8,129.77,0.05291115]
[1743180916768,28.98,129.79,129.77,0.05291115]
[1743180921769,28.86,129.8,129.77,0.05291115]
[1743180923075,36.5689,129.8,129.77,0.05291115]
[1743180923668,7.7093,129.79,129.77,0.05291115]
[1743180923868,28.86,129.8,129.77,0.05291115]
[1743180924276,36.5691,129.8,129.77,0.05291115]
[1743180924679,28.86,129.8,129.77,0.05291115]
[1743180924880,36.5689,129.8,129.77,0.05291115]
[1743180925781,28.86,129.8,129.77,0.05291115]
[1743180926979,7.7098,129.78,129.77,0.05291115]
[1743180930073,7.7092,129.79,129.77,0.05291115]
[1743180932285,19.2336237,129.87,129.8,7.7083]
[1743180932481,28.8,129.86,129.8,7.7083]
[1743180932682,7.7065,129.84,129.82,0.05808854]
[1743180933590,7.7068,129.83,129.82,0.05808854]
[1743180933889,28.78,129.84,129.82,0.05808854]
[1743180934187,36.4866,129.84,129.82,0.05808854]
[1743180934585,28.78,129.84,129.82,0.05808854]
[1743180934789,7.7068,129.83,129.82,0.05808854]
[1743180936998,28.78,129.84,129.82,0.05808854]
[1743180937495,7.7068,129.83,129.82,0.05808854]
[1743180937795,28.78,129.84,129.82,0.05808854]
[1743180938188,36.4865,129.84,129.82,0.05808854]
[1743180938386,7.7065,129.84,129.82,0.05808854]
[1743180939193,7.7065,129.84,129.82,7.76548854]
[1743180939389,28.68,129.85,129.82,7.76548854]
[1743180939890,7.7065,129.84,129.82,0.05808854]
[1743180940291,28.64,129.86,129.82,0.05808854]
[1743180941091,7.7057,129.85,129.82,7.76518854]
[1743180941294,28.64,129.86,129.82,0.05808854]
[1743180941595,7.7065,129.84,129.82,0.05808854]
[1743180942194,7.7059,129.85,129.82,7.76538854]
[1743180942594,28.64,129.86,129.82,7.76538854]
[1743180942788,28.64,129.86,129.82,0.05808854]
[1743180942988,7.7066,129.84,129.82,0.05808854]
[1743180944295,7.7066,129.84,129.82,106.60374178]
[1743180944688,7.7068,129.83,129.82,106.60374178]
[1743180946390,26.9404237,129.83,129.82,54.49074178]
[1743180946585,19.2336237,129.83,129.8,127.9350008]
[1743180946790,28.72,129.82,129.8,127.9350008]
[1743180946989,12.31710865,129.81,129.8,127.9350008]
[1743180947195,20.02510865,129.81,129.8,127.9350008]
[1743180948998,7.708,129.81,129.8,127.9350008]
[1743180950098,7.7086,129.8,129.79,0.05681404]
[1743180951289,28.76907676,129.82,129.79,0.05681404]
[1743180951599,0.04907676,129.82,129.79,0.05681404]
[1743180952197,0.04907676,129.82,129.81,7.708]
[1743180954692,0.04907676,129.82,129.8,7.7083]
[1743180954892,0.04907676,129.82,129.79,0.05681404]
[1743180955294,7.75647676,129.82,129.79,7.76581404]
[1743180956290,7.7085,129.81,129.79,0.05681404]
[1743180956494,0.04907676,129.82,129.79,0.05681404]
[1743180956495,29.16907676,129.82,129.79,0.05681404]
[1743180956996,7.7084,129.81,129.79,0.05681404]
[1743180957995,7.7086,129.8,129.79,0.05681404]
[1743180958199,29.16907676,129.82,129.79,0.05681404]
[1743180959094,0.04907676,129.82,129.81,7.708]
[1743180960295,0.04907676,129.82,129.8,7.7083]
[1743180960496,0.04907676,129.82,129.79,2.01241404]
[1743180960693,0.04907676,129.82,129.79,21.25740129]
[1743180960898,29.24,129.86,129.81,19.24498725]
[1743180961098,29.24,129.87,129.81,19.24498725]
[1743180961902,7.7053,129.86,129.83,7.75664754]
[1743180962203,19.24498725,129.86,129.83,0.05014754]
[1743180962407,7.7062,129.84,129.83,0.05014754]
[1743180962608,37.2262,129.84,129.83,0.05014754]
[1743180963698,48.76498725,129.84,129.76,127.9350008]
[1743180964206,7.7076,129.82,129.78,7.7095]
[1743180964411,29.5,129.81,129.78,7.7095]
[1743180964603,29.5,129.81,129.77,19.24498725]
[1743180964803,0.05131083,129.81,129.78,0.05379466]
[1743180967113,29.57131083,129.81,129.78,0.05379466]
[1743180967699,0.05131083,129.81,129.78,0.05379466]
[1743180967906,0.05131083,129.81,129.79,7.7088]
[1743180968912,0.05131083,129.81,129.78,0.05379466]
[1743180968913,0.05131083,129.81,129.8,7.7086]
[1743180969418,7.7066,129.84,129.8,7.7086]
[1743180969603,29.52,129.85,129.81,7.7079]
[1743180970010,37.226,129.85,129.81,7.7079]
[1743180970412,29.52,129.85,129.8,7.7083]
[1743180970613,7.7065,129.84,129.82,0.0579751]
[1743180970808,29.52,129.85,129.82,0.0579751]
[1743180972217,7.7068,129.83,129.82,0.0579751]
[1743180975215,7.7066,129.84,129.82,0.0579751]
[1743180975617,29.52,129.85,129.82,0.0579751]
[1743180975812,7.7062,129.84,129.82,0.0579751]
[1743180977218,7.7068,129.83,129.82,0.0579751]
[1743180977415,20.01559166,129.83,129.82,0.0579751]
[1743180978014,12.30879166,129.83,129.76,97.80337797]
[1743180978214,12.30879166,129.81,129.76,97.80337797]
[1743180978519,7.7098,129.78,129.76,97.80337797]
[1743180979224,7.76722193,129.78,129.76,97.85736673]
[1743180979418,7.7104,129.77,129.76,97.85736673]
[1743180979722,7.7104,129.77,129.76,85.54857507]
[1743180980315,7.7104,129.77,129.76,0.05398876]
[1743180981619,7.7104,129.77,129.76,8.876e-05]
[1743180981816,26.96171059,129.77,129.76,8.876e-05]
[1743180982626,7.7127,129.73,129.72,85.49458631]
[1743180983423,7.7145,129.7,129.69,139.56366078]
[1743180985222,104.38133922,129.69,129.68,127.9918889]
[1743180985427,104.38133922,129.68,129.66,266.5312517]
[1743180985721,29.48,129.67,129.66,266.5312517]
[1743180985921,7.7174,129.66,129.63,21.5729384]
[1743180986327,29.48,129.67,129.63,21.5729384]
[1743180986531,7.7175,129.65,129.63,21.62970652]
[1743180986825,0.05820859,129.66,129.63,21.62970652]
[1743180987229,7.7176,129.65,129.63,21.62970652]
[1743180988530,7.7176,129.65,129.63,0.05676812]
[1743180989426,7.7181,129.64,129.63,0.05676812]
[1743180999425,36.9981,129.64,129.63,0.05676812]
[1743180999932,36.9981,129.64,129.63,6.812e-05]
[1743181000731,7.7227,129.57,129.55,21.36481059]
[1743181000930,19.25131059,129.63,129.55,21.36481059]
[1743181001633,7.722,129.58,129.55,21.36481059]
[1743181001828,19.25131059,129.63,129.55,21.36481059]
[1743181002028,0.05768516,129.58,129.55,21.36481059]
[1743181002231,7.7229,129.56,129.55,2.1135]
[1743181002427,7.7229,129.56,129.55,2.16314368]
[1743181003432,7.7229,129.56,129.55,0.04964368]
[1743181007230,29.31768516,129.58,129.53,2.079]
[1743181007440,7.7241,129.54,129.53,2.079]
[1743181009935,7.7246,129.53,129.52,0.05512317]
[1743181013437,7.7278,129.48,129.45,11.7272]
[1743181014142,7.7273,129.49,129.46,7.7287]
[1743181014338,29.1,129.51,129.45,23.24941059]
[1743181014541,29.1,129.51,129.46,0.05430994]
[1743181014542,0.05679024,129.49,129.46,0.05430994]
[1743181014743,0.05679024,129.49,129.47,7.7278]
[1743181015142,0.05679024,129.49,129.46,0.05430994]
[1743181015845,0.05679024,129.49,129.47,7.7279]
[1743181016546,71.73927885,129.51,129.46,0.05430994]
[1743181016738,42.63927885,129.51,129.46,0.05430994]
[1743181016947,42.63927885,129.51,129.49,7.7269]
[1743181017739,42.69743951,129.51,129.49,0.04885983]
[1743181017944,42.69743951,129.51,129.49,126.04885983]
[1743181018345,10.71798037,129.51,129.49,126.04885983]
[1743181018747,18.44398037,129.51,129.49,126.04885983]
[1743181019551,26.76071934,129.5,129.49,133.77575983]
[1743181020053,26.76071934,129.5,129.49,7.7269]
[1743181020952,99.31256562,129.5,129.49,7.7269]
[1743181021151,99.31256562,129.5,129.48,0.04939892]
[1743181021650,99.31256562,129.5,129.49,7.7269]
[1743181022757,0.05816066,129.51,129.5,7.7264]
[1743181023962,0.05816066,129.51,129.48,0.04939892]
[1743181024368,7.7264,129.5,129.49,18.0]
[1743181027764,7.7264,129.5,129.49,5.8528]
[1743181027969,7.727,129.49,129.48,0.04939892]
[1743181028769,26.97831059,129.49,129.48,0.04939892]
[1743181029868,7.727,129.49,129.48,0.04939892]
[1743181032574,7.7286,129.47,129.44,7.7297]
[1743181033079,7.7279,129.48,129.45,7.7293]
[1743181033281,28.94,129.5,129.42,28.9]
[1743181033567,7.7813129,129.47,129.45,0.05485874]
[1743181033776,0.0528129,129.47,129.45,0.05485874]
[1743181034775,0.0528129,129.47,129.45,7.78395874]
[1743181035575,0.0528129,129.47,129.46,7.7288]
[1743181035877,0.0528129,129.47,129.45,0.05485874]
[1743181035878,7.7811129,129.47,129.45,0.05485874]
[1743181036276,7.7811129,129.47,129.45,7.78405874]
[1743181036865,0.0528129,129.47,129.45,7.78405874]
[1743181037178,0.0528129,129.47,129.46,7.7288]
[1743181037475,36.6667,129.5,129.46,12.37744524]
[1743181037677,28.94,129.5,129.45,28.91485874]
[1743181037879,28.94,129.5,129.46,7.7285]
[1743181038077,7.7272,129.49,129.46,7.7285]
[1743181038265,41.31744524,129.5,129.46,7.7285]
[1743181038470,7.7286,129.47,129.45,36.64415874]
[1743181038671,7.7286,129.47,129.45,7.78415874]
[1743181038872,7.7286,129.47,129.45,0.05485874]
[1743181039782,7.7288,129.46,129.45,0.05485874]
[1743181046377,36.5486,129.47,129.45,0.05485874]
[1743181047585,28.82,129.47,129.45,7.78425874]
[1743181047887,0.05074109,129.49,129.45,0.05485874]
[1743181048277,7.77804109,129.49,129.45,7.78385874]
[1743181048976,7.7277,129.48,129.45,0.05485874]
[1743181049387,7.7285,129.47,129.45,0.05485874]
[1743181049587,19.39507347,129.49,129.45,0.05485874]
[1743181050288,7.728,129.48,129.45,7.78425874]
[1743181050686,7.7284,129.47,129.45,0.05485874]
[1743181051081,19.39507347,129.49,129.45,0.05485874]
[1743181052088,7.7277,129.48,129.45,7.78425874]
[1743181052278,19.39507347,129.49,129.45,0.05485874]
[1743181052589,27.12267347,129.49,129.46,7.7287]
[1743181052788,7.77834109,129.49,129.46,7.7287]
[1743181053289,7.7277,129.48,129.46,7.7287]
[1743181053489,0.05074109,129.49,129.45,7.78395874]
[1743181053687,7.7277,129.48,129.45,0.05485874]
[1743181053991,7.7277,129.48,129.45,7.78405874]
[1743181055094,7.7284,129.47,129.45,0.05485874]
[1743181055284,0.05074109,129.49,129.45,0.05485874]
[1743181055590,7.7288,129.47,129.45,0.05485874]
[1743181055789,48.04433238,129.47,129.45,0.05485874]
[1743181056091,48.04433238,129.47,129.37,364.0]
[1743181056288,19.34433238,129.43,129.37,2.1016]
[1743181056489,48.04433238,129.43,129.37,2.1016]
[1743181056692,7.7327,129.4,129.37,2.1016]
[1743181056888,19.34433238,129.41,129.37,2.1016]
[1743181057092,0.05078728,129.4,129.37,2.15942746]
[1743181057285,7.7333,129.39,129.37,2.15942746]
[1743181058493,7.7333,129.39,129.37,0.05782746]
[1743181058887,7.78338728,129.4,129.37,0.05782746]
[1743181059393,7.78338728,129.4,129.37,7.79192746]
[1743181061296,0.05078728,129.4,129.38,7.7336]
[1743181061594,0.05078728,129.4,129.37,0.05782746]
[1743181061795,0.05078728,129.4,129.39,7.733]
[1743181064896,0.05078728,129.4,129.38,7.7333]
[1743181065894,7.78318728,129.4,129.37,7.79172746]
[1743181066088,0.05078728,129.4,129.37,0.05782746]
[1743181066496,7.7332,129.39,129.37,0.05782746]
[1743181066696,0.05078728,129.4,129.37,0.05782746]
[1743181066996,7.78368728,129.4,129.37,7.79192746]
[1743181068504,7.7331,129.39,129.37,0.05782746]
[1743181069002,0.05078728,129.4,129.37,0.05782746]
[1743181069189,7.7336,129.38,129.37,0.05782746]
[1743181070703,7.7333,129.39,129.37,7.79182746]
[1743181071093,28.77078728,129.4,129.37,0.05782746]
[1743181071491,7.733,129.39,129.37,0.05782746]
[1743181072901,28.77078728,129.4,129.37,0.05782746]
[1743181073405,7.7336,129.38,129.37,0.05782746]
[1743181074207,7.7333,129.39,129.37,0.05782746]
[1743181074601,36.50348728,129.4,129.37,7.79202746]
[1743181075507,28.77078728,129.4,129.38,7.7334]
[1743181076005,28.77078728,129.4,129.37,0.05782746]
[1743181076208,36.50358728,129.4,129.37,7.79172746]
[1743181077010,7.78358728,129.4,129.37,7.79172746]
[1743181078101,7.7336,129.38,129.37,0.05782746]
[1743181079111,48.85331736,129.38,129.37,0.05782746]
[1743181080210,36.4536,129.38,129.37,0.05782746]
[1743181082113,7.7333,129.39,129.37,0.05782746]
[1743181082512,41.17050464,129.4,129.37,0.05782746]
[1743181082713,7.7336,129.38,129.37,0.05782746]
[1743181084814,7.7332,129.39,129.37,0.05782746]
[1743181085011,28.77078728,129.4,129.37,0.05782746]
[1743181085212,0.05078728,129.4,129.37,12.45754482]
[1743181085407,7.78318728,129.4,129.37,12.45754482]
[1743181085614,0.05078728,129.4,129.37,20.19144482]
[1743181085803,0.05078728,129.4,129.37,12.45754482]
[1743181086208,0.05078728,129.4,129.37,0.05782746]
[1743181086209,12.45050464,129.4,129.37,0.05782746]
[1743181086409,12.39971736,129.39,129.37,0.05782746]
[1743181086710,7.7336,129.38,129.37,0.05782746]
[1743181089219,20.13331736,129.38,129.37,0.05782746]
[1743181089714,20.13331736,129.38,129.37,2.746e-05]
[1743181089924,7.7365,129.34,129.3,12.39971736]
[1743181090316,7.7365,129.34,129.31,7.7375]
[1743181090516,7.7367,129.33,129.31,7.7375]
[1743181091018,0.05148212,129.33,129.31,7.78712637]
[1743181091219,0.05148212,129.33,129.32,7.7372]
[1743181092222,0.05148212,129.33,129.31,20.18684373]
[1743181092423,0.05148212,129.33,129.31,0.04962637]
[1743181092826,0.05148212,129.33,129.31,7.78702637]
[1743181093820,0.05148212,129.33,129.32,7.7372]
[1743181094927,0.05148212,129.33,129.32,20.13691736]
[1743181097629,42.63927885,129.41,129.32,12.39971736]
[1743181097831,12.39971736,129.38,129.33,12.39971736]
[1743181098328,7.7359,129.35,129.32,7.7369]
[1743181098830,7.78655459,129.35,129.32,7.79320117]
[1743181099034,7.78655459,129.35,129.33,7.7366]
[1743181099428,7.78655459,129.35,129.32,0.05630117]
[1743181099632,7.78655459,129.35,129.32,7.79290117]
[1743181099832,0.05065459,129.35,129.33,12.39971736]
[1743181100330,0.05065459,129.35,129.34,7.736]
[1743181101128,0.05065459,129.35,129.33,20.13591736]
[1743181101333,0.05065459,129.35,129.33,7.7362]
[1743181102035,7.78615459,129.35,129.33,7.7362]
[1743181102333,0.05065459,129.35,129.33,7.7362]
[1743181102733,10.65981971,129.41,129.33,7.7362]
[1743181102932,10.65981971,129.41,129.35,12.39971736]
[1743181102933,12.39971736,129.39,129.35,12.39971736]
[1743181103129,7.7339,129.38,129.35,12.39971736]
[1743181103328,12.39971736,129.39,129.35,12.39971736]
[1743181103629,7.7347,129.37,129.34,12.39971736]